bitfinex/quotes_SOLUSD_20241223
["timestamp","ask_amount","ask_price","bid_price","bid_amount"]
[1734997395263,10.60839399,190.31,190.23,10.60839399]
[1734997395447,10.60839399,190.29,190.18,9.7830904]
[1734997395653,10.60839399,190.29,190.21,10.60839399]
[1734997397666,0.98544482,190.28,190.21,9.60839399]
[1734997397870,10.60839399,190.29,190.21,9.60839399]
[1734997398261,0.98545796,190.28,190.21,9.60839399]
[1734997398649,10.60839399,190.29,190.21,9.60839399]
[1734997400960,0.98545142,190.28,190.21,9.60839399]
[1734997401161,10.60839399,190.29,190.18,9.7830904]
[1734997401339,10.60839399,190.29,190.21,10.60839399]
[1734997401340,0.9854735,190.28,190.21,10.60839399]
[1734997401544,0.9854735,190.28,190.18,9.7830904]
[1734997401545,1.6235,190.27,190.18,9.7830904]
[1734997401743,12.23189399,190.27,190.18,9.7830904]
[1734997401948,12.23189399,190.27,190.19,10.60839399]
[1734997402578,12.23189399,190.27,190.18,9.7830904]
[1734997402743,0.98555385,190.26,190.19,10.60839399]
[1734997404089,12.23189399,190.27,190.18,0.6830904]
[1734997404270,13.21745675,190.27,190.18,11.29148439]
[1734997404858,2.60906276,190.27,190.18,11.29148439]
[1734997405051,13.21745675,190.27,190.18,11.29148439]
[1734997405576,3.9412,190.3,190.2,10.60839399]
[1734997405756,10.60839399,190.28,190.2,10.60839399]
[1734997406143,0.985489,190.27,190.2,10.60839399]
[1734997406375,0.985489,190.27,190.18,11.29148439]
[1734997406376,10.60839399,190.26,190.18,11.29148439]
[1734997406668,0.98566949,190.25,190.18,11.29148439]
[1734997406874,0.98566949,190.25,190.18,0.6830904]
[1734997407064,0.98566949,190.25,190.18,11.29148439]
[1734997407536,0.98564238,190.25,190.18,11.29148439]
[1734997408268,10.60839399,190.26,190.18,11.29148439]
[1734997408570,0.98564177,190.25,190.18,11.29148439]
[1734997409075,10.60839399,190.26,190.18,11.29148439]
[1734997409447,10.60839399,190.27,190.19,10.60839399]
[1734997409656,11.59399559,190.26,190.19,10.60839399]
[1734997409870,10.60839399,190.26,190.19,10.60839399]
[1734997410894,0.98560494,190.29,190.19,10.60839399]
[1734997411069,11.59399893,190.29,190.21,10.60839399]
[1734997411464,10.60839399,190.27,190.19,10.60839399]
[1734997411667,0.98560841,190.26,190.19,10.60839399]
[1734997411983,10.60839399,190.25,190.19,10.60839399]
[1734997412291,10.60839399,190.27,190.19,10.60839399]
[1734997414130,10.60839399,190.25,190.18,0.6830904]
[1734997414279,0.98575423,190.24,190.18,0.6830904]
[1734997415569,10.60839399,190.2,190.18,0.6830904]
[1734997417693,0.98595284,190.19,190.18,0.6830904]
[1734997417881,10.60839399,190.2,190.18,0.6830904]
[1734997418185,0.98595259,190.19,190.18,0.6830904]
[1734997418861,10.60839399,190.2,190.18,0.6830904]
[1734997419385,10.60839399,190.21,190.18,0.6830904]
[1734997419589,0.98595467,190.23,190.18,0.6830904]
[1734997419805,10.60839399,190.24,190.18,0.6830904]
[1734997420094,2.60935829,190.26,190.18,0.6830904]
[1734997420095,11.59408993,190.23,190.18,0.6830904]
[1734997421365,10.60839399,190.23,190.18,0.6830904]
[1734997422203,10.60839399,190.24,190.18,0.6830904]
[1734997422387,0.98574553,190.23,190.18,0.6830904]
[1734997422700,11.59413952,190.23,190.18,0.6830904]
[1734997423579,10.60839399,190.23,190.18,0.6830904]
[1734997429377,10.60839399,190.21,190.18,0.6830904]
[1734997430240,0.98573699,190.22,190.18,9.04e-05]
[1734997430241,42.27216799,190.19,190.18,9.04e-05]
[1734997430499,42.27216799,190.19,190.05,8.23568165]
[1734997430500,23.776884,190.18,190.05,8.23568165]
[1734997430802,10.60839399,190.13,190.05,18.84407564]
[1734997431174,10.60839399,190.13,190.05,10.60839399]
[1734997432017,10.60839399,190.11,190.02,9.47517805]
[1734997432172,10.60839399,190.11,190.03,10.60839399]
[1734997432507,10.60839399,190.13,190.05,10.60839399]
[1734997434601,4.93038071,190.17,190.05,19.70839399]
[1734997434905,10.60839399,190.12,190.05,10.60839399]
[1734997435980,10.60839399,190.13,190.06,10.60839399]
[1734997436183,10.60839399,190.13,190.05,10.60839399]
[1734997437315,10.60839399,190.12,190.05,10.60839399]
[1734997439682,10.60839399,190.12,190.05,19.70839399]
[1734997439885,10.60839399,190.12,190.05,9.1]
[1734997440188,10.60839399,190.12,190.05,19.70839399]
[1734997440517,10.60839399,190.12,190.05,9.1]
[1734997440685,10.60839399,190.12,190.05,19.70839399]
[1734997441309,0.98626661,190.15,190.05,19.70839399]
[1734997441515,10.60839399,190.13,190.07,10.60839399]
[1734997441813,10.60839399,190.13,190.06,10.60839399]
[1734997442514,10.60839399,190.12,190.05,19.70839399]
[1734997442708,10.60839399,190.13,190.06,10.60839399]
[1734997442887,10.60839399,190.12,190.05,9.1]
[1734997443087,10.60839399,190.12,190.05,19.70839399]
[1734997445719,10.60839399,190.12,190.05,10.60839399]
[1734997445910,10.60839399,190.11,190.02,9.47517805]
[1734997446113,10.60839399,190.11,190.05,10.60839399]
[1734997446590,10.60839399,190.12,190.05,10.60839399]
[1734997449621,10.60839399,190.12,190.04,10.60839399]
[1734997452039,10.60839399,190.11,190.04,10.60839399]
[1734997452626,10.60839399,190.1,190.02,0.37517805]
[1734997452804,10.60839399,190.11,190.03,10.60839399]
[1734997453833,10.60839399,190.11,190.04,10.60839399]
[1734997454217,10.60839399,190.12,190.04,10.60839399]
[1734997457235,10.60839399,190.12,190.05,10.60839399]
[1734997457522,10.60839399,190.12,190.04,10.60839399]
[1734997457695,1.6491,190.11,190.04,10.60839399]
[1734997457900,10.60839399,190.09,190.02,0.37517805]
[1734997458119,10.60839399,190.05,190.02,0.37517805]
[1734997458313,10.60839399,190.05,189.98,11.29148439]
[1734997459333,0.98665331,190.09,190.0,10.60839399]
[1734997459500,0.98665331,190.09,189.98,9.7830904]
[1734997459702,11.5950473,190.09,190.02,10.60839399]
[1734997460009,10.60839399,190.1,190.03,10.60839399]
[1734997460810,0.98643013,190.15,190.08,10.60839399]
[1734997461003,13.2436622,190.16,190.09,10.60839399]
[1734997461206,10.60839399,190.14,190.06,10.60839399]
[1734997462108,10.60839399,190.17,190.09,10.60839399]
[1734997462634,10.60839399,190.17,190.1,10.60839399]
[1734997463041,10.60839399,190.17,190.09,10.60839399]
[1734997463245,10.60839399,190.17,190.1,10.60839399]
[1734997463445,2.63648794,190.21,190.1,10.60839399]
[1734997463630,10.60839399,190.17,190.1,10.60839399]
[1734997463944,10.60839399,190.18,190.1,10.60839399]
[1734997466553,10.60839399,190.18,190.11,10.60839399]
[1734997466947,10.60839399,190.19,190.12,10.60839399]
[1734997467543,10.60839399,190.19,190.08,1.5277]
[1734997467741,10.60839399,190.18,190.11,10.60839399]
[1734997467941,10.60839399,190.17,190.08,10.6277]
[1734997468147,10.60839399,190.17,190.1,10.60839399]
[1734997471162,10.60839399,190.18,190.11,10.60839399]
[1734997472851,10.60839399,190.15,190.08,1.5277]
[1734997473151,10.60839399,190.15,190.08,10.60839399]
[1734997473871,10.60839399,190.16,190.09,10.60839399]
[1734997476157,0.9861435,190.19,190.09,10.60839399]
[1734997476361,10.60839399,190.16,190.09,10.60839399]
[1734997481073,0.98605584,190.2,190.11,10.60839399]
[1734997481273,10.60839399,190.19,190.11,10.60839399]
[1734997481584,10.60839399,190.17,190.11,10.60839399]
[1734997482060,10.60839399,190.17,190.1,9.1]
[1734997482259,1.6504,190.21,190.11,10.60839399]
[1734997482468,10.60839399,190.2,190.11,10.60839399]
[1734997482977,10.60839399,190.18,190.11,10.60839399]
[1734997483378,10.60839399,190.19,190.11,10.60839399]
[1734997484251,2.63648121,190.21,190.13,10.60839399]
[1734997484571,6.6124,190.22,190.14,10.60839399]
[1734997484572,11.59425586,190.22,190.14,10.60839399]
[1734997484773,10.60839399,190.24,190.16,10.60839399]
[1734997485081,10.60839399,190.23,190.15,10.60839399]
[1734997485969,10.60839399,190.24,190.17,10.60839399]
[1734997486193,10.60839399,190.23,190.16,10.60839399]
[1734997487401,10.60839399,190.21,190.14,10.60839399]
[1734997489082,10.60839399,190.22,190.15,10.60839399]
[1734997489588,2.5623407,190.27,190.17,10.60839399]
[1734997489776,10.60839399,190.24,190.17,10.60839399]
[1734997490974,10.60839399,190.24,190.16,10.60839399]
[1734997492491,0.98573142,190.23,190.16,10.60839399]
[1734997494096,0.98573142,190.23,190.17,10.60839399]
[1734997495196,2.56226309,190.27,190.18,10.60839399]
[1734997495499,10.60839399,190.26,190.18,10.60839399]
[1734997495695,0.98566164,190.25,190.18,10.60839399]
[1734997496586,11.59405563,190.25,190.18,10.60839399]
[1734997496901,10.60839399,190.24,190.17,10.60839399]
[1734997497089,10.60839399,190.24,190.14,22.2482]
[1734997497285,10.60839399,190.22,190.15,10.60839399]
[1734997497496,10.60839399,190.19,190.12,10.60839399]
[1734997497703,0.98600743,190.18,190.12,10.60839399]
[1734997498104,11.59440142,190.18,190.11,10.60839399]
[1734997499779,0.98600743,190.18,190.12,10.60839399]
[1734997501080,0.98600743,190.18,190.11,10.60839399]
[1734997502482,0.98603462,190.19,190.12,10.60839399]
[1734997502808,2.51839382,190.2,190.13,10.60839399]
[1734997503808,13.12678781,190.2,190.13,10.60839399]
[1734997504234,10.60839399,190.19,190.12,10.60839399]
[1734997505290,0.98600432,190.18,190.11,10.60839399]
[1734997505814,0.98600432,190.18,190.12,10.60839399]
[1734997511615,10.60839399,190.17,190.1,10.60839399]
[1734997511801,11.59444351,190.16,190.07,9.1]
[1734997512002,11.59444351,190.16,190.08,10.60839399]
[1734997512917,10.60839399,190.13,190.06,10.60839399]
[1734997513096,0.98633222,190.12,190.06,10.60839399]
[1734997513415,0.98633222,190.12,190.02,22.2563]
[1734997513416,11.59472621,190.12,190.02,22.2563]
[1734997513626,10.60839399,190.1,190.02,9.1]
[1734997513802,11.59495386,190.09,190.02,10.60839399]
[1734997514006,11.59495386,190.09,190.01,10.60839399]
[1734997514513,10.60839399,190.07,190.0,10.60839399]
[1734997514720,0.98667597,190.06,190.0,10.60839399]
[1734997515720,11.59506996,190.06,189.99,10.98363128]
[1734997518124,0.98667597,190.06,190.0,10.60839399]
[1734997519910,30.60839399,190.1,190.03,10.60839399]
[1734997520225,11.59491494,190.12,190.05,10.60839399]
[1734997520620,0.98652095,190.12,190.06,10.60839399]
[1734997520923,1.6022,190.13,190.09,10.60839399]
[1734997521998,1.6022,190.13,190.01,10.7292]
[1734997521999,1.6022,190.13,190.08,10.60839399]
[1734997522804,2.58782713,190.18,190.1,10.60839399]
[1734997522994,10.60839399,190.17,190.1,10.60839399]
[1734997523193,0.98612593,190.16,190.1,10.60839399]
[1734997524030,11.59450838,190.17,190.1,10.60839399]
[1734997524207,0.98611439,190.17,190.11,10.60839399]
[1734997524407,12.20999399,190.18,190.11,10.60839399]
[1734997524605,1.6016,190.18,190.14,10.60839399]
[1734997525203,0.98607768,190.21,190.14,10.60839399]
[1734997525406,12.20999399,190.22,190.15,10.60839399]
[1734997525914,1.6016,190.22,190.15,10.60839399]
[1734997526115,12.20999399,190.22,190.15,10.60839399]
[1734997526523,1.6016,190.22,190.16,10.60839399]
[1734997526908,1.6016,190.22,190.17,10.60839399]
[1734997527503,1.6016,190.22,190.17,8.60839399]
[1734997529031,1.6016,190.22,190.16,10.60839399]
[1734997529204,12.20999399,190.22,190.13,9.22549]
[1734997529404,12.20999399,190.22,190.15,10.60839399]
[1734997529917,1.6016,190.22,190.16,10.60839399]
[1734997531528,10.60839399,190.21,190.14,10.60839399]
[1734997532835,12.20999399,190.22,190.15,10.60839399]
[1734997534731,12.20999399,190.22,190.13,9.22549]
[1734997534732,0.98578755,190.29,190.18,10.60839399]
[1734997534916,10.60839399,190.28,190.21,10.60839399]
[1734997535124,11.5939181,190.29,190.21,10.60839399]
[1734997535327,10.60839399,190.28,190.21,10.60839399]
[1734997535714,10.60839399,190.26,190.16,11.33170444]
[1734997535916,10.60839399,190.26,190.19,10.60839399]
[1734997536442,10.60839399,190.27,190.19,10.60839399]
[1734997537237,10.60839399,190.26,190.19,10.60839399]
[1734997537727,2.58717374,190.3,190.2,10.60839399]
[1734997537939,10.60839399,190.27,190.2,10.60839399]
[1734997538539,10.60839399,190.26,190.19,10.60839399]
[1734997540243,10.60839399,190.24,190.17,10.60839399]
[1734997540446,0.98575636,190.23,190.17,10.60839399]
[1734997541242,11.59415035,190.23,190.16,10.60839399]
[1734997542049,10.60839399,190.21,190.14,10.60839399]
[1734997542223,0.98595042,190.21,190.15,10.60839399]
[1734997542742,2.63986197,190.22,190.15,10.60839399]
[1734997542947,2.63986197,190.22,190.16,10.60839399]
[1734997543321,2.63986197,190.22,190.11,13.15]
[1734997543322,1.654,190.22,190.17,10.60839399]
[1734997543544,1.654,190.22,190.19,10.60839399]
[1734997543740,6.229,190.24,190.19,10.60839399]
[1734997544042,6.229,190.24,190.2,10.60839399]
[1734997544544,6.229,190.24,190.19,10.60839399]
[1734997546736,6.229,190.24,190.18,10.60839399]
[1734997546938,0.98568005,190.23,190.17,10.60839399]
[1734997547253,10.60839399,190.22,190.15,10.60839399]
[1734997547550,0.98590702,190.21,190.15,10.60839399]
[1734997548844,0.98588528,190.23,190.13,22.2486]
[1734997549049,0.98588528,190.23,190.17,10.60839399]
[1734997549273,10.60839399,190.22,190.13,9.1]
[1734997549544,11.59434518,190.21,190.13,10.60839399]
[1734997549756,10.60839399,190.18,190.07,22.2529]
[1734997550045,10.60839399,190.16,190.09,10.60839399]
[1734997550244,11.59465371,190.15,190.07,10.60839399]
[1734997550632,11.59465371,190.15,190.08,10.60839399]
[1734997551650,0.98625972,190.15,190.08,10.60839399]
[1734997551839,0.98625972,190.15,190.09,10.60839399]
[1734997552242,0.98625972,190.15,190.09,16.62962027]
[1734997558255,16.62962027,190.13,190.04,13.1549]
[1734997558458,0.98645923,190.12,190.05,16.62962027]
[1734997558664,16.62962027,190.11,190.05,16.62962027]
[1734997558846,0.98650551,190.1,190.05,16.62962027]
[1734997560941,0.98646278,190.11,190.05,16.62962027]
[1734997562835,0.98646278,190.11,190.04,16.62962027]
[1734997564366,0.98646278,190.11,190.05,16.62962027]
[1734997564965,0.98646278,190.11,190.01,13.1571]
[1734997565153,17.61608305,190.11,190.04,16.62962027]
[1734997565540,0.98646278,190.11,190.04,16.62962027]
[1734997568667,0.98646278,190.11,190.05,16.62962027]
[1734997572275,0.98646278,190.11,190.05,10.64727528]
[1734997574476,0.98646278,190.11,190.04,10.64727528]
[1734997574856,11.63373806,190.11,190.04,10.64727528]
[1734997575054,18.81167528,190.1,189.99,0.37523729]
[1734997575254,10.64727528,190.07,190.0,10.64727528]
[1734997575558,0.98675266,190.06,190.0,10.64727528]
[1734997577363,0.98675266,190.06,189.99,11.02251257]
[1734997579579,11.63402794,190.06,189.99,11.02251257]
[1734997580177,10.64727528,190.04,189.99,0.37523729]
[1734997580378,0.98691925,190.03,189.99,0.37523729]
[1734997581076,2.53841925,190.03,189.99,0.37523729]
[1734997583187,1.5693,190.08,190.02,10.64727528]
[1734997583483,1.5693,190.08,189.99,0.37523729]
[1734997583484,0.98657055,190.07,190.03,10.64727528]
[1734997583689,0.98657055,190.07,190.02,10.64727528]
[1734997584354,11.63384583,190.07,189.99,0.37523729]
[1734997584558,10.64727528,190.06,189.99,11.02251257]
[1734997584774,0.98681342,190.05,189.99,11.02251257]
[1734997588584,10.64727528,190.04,189.99,0.37523729]
[1734997588887,0.98691429,190.03,189.99,0.37523729]
[1734997589686,0.98688981,190.02,189.99,0.37523729]
[1734997589889,0.98688484,190.04,189.99,0.37523729]
[1734997590488,11.63416012,190.04,189.99,0.37523729]
[1734997591093,0.98688484,190.04,189.99,0.37523729]
[1734997591695,7.9282,190.03,189.99,0.37523729]
[1734997591883,0.98693551,190.02,189.99,0.37523729]
[1734997592086,11.63421079,190.02,189.99,0.37523729]
[1734997592390,10.64727528,190.01,189.98,0.6830904]
[1734997592591,11.63436704,190.0,189.98,0.6830904]
[1734997593395,10.64727528,189.99,189.98,0.6830904]
[1734997593565,13.20386646,189.99,189.98,0.6830904]
[1734997594189,36.98075046,189.99,189.98,0.6830904]
[1734997594574,23.776884,189.97,189.79,11.4108904]
[1734997594772,11.63465449,189.96,189.89,10.64727528]
[1734997594968,1.5693,189.99,189.94,10.64727528]
[1734997595163,1.5693,189.99,189.9,0.12549]
[1734997595392,0.98706415,190.01,189.96,10.64727528]
[1734997595584,7.34579836,190.02,189.96,10.64727528]
[1734997595767,0.98689836,190.02,189.93,0.12549]
[1734997595965,2.55622907,190.04,189.98,10.64727528]
[1734997596175,13.20350435,190.04,189.97,10.64727528]
[1734997596776,2.55622907,190.04,189.97,10.64727528]
[1734997596992,13.20350435,190.04,189.97,10.64727528]
[1734997597192,13.20350435,190.04,189.96,10.64727528]
[1734997597384,10.64727528,190.03,189.96,10.64727528]
[1734997597577,0.98697428,190.02,189.95,10.64727528]
[1734997597978,11.63424956,190.02,189.9,11.26919078]
[1734997598186,10.64727528,190.01,189.93,10.64727528]
[1734997598385,0.98701279,190.0,189.94,10.64727528]
[1734997599598,0.98701279,190.0,189.93,10.64727528]
[1734997600501,0.98701279,190.0,189.94,10.64727528]
[1734997600701,0.98696984,190.01,189.94,10.64727528]
[1734997601099,11.63424512,190.01,189.94,10.64727528]
[1734997602107,11.63424512,190.01,189.93,10.64727528]
[1734997602410,11.63424512,190.01,189.94,10.64727528]
[1734997603503,11.63424512,190.01,189.93,10.64727528]
[1734997604375,11.63424512,190.01,189.94,10.64727528]
[1734997604574,0.98696984,190.01,189.97,10.64727528]
[1734997604774,0.98691742,190.03,189.97,10.64727528]
[1734997604981,11.6341927,190.03,189.96,10.64727528]
[1734997605176,0.98691742,190.03,189.96,10.64727528]
[1734997605383,11.6341927,190.03,189.96,10.64727528]
[1734997606030,0.98691742,190.03,189.96,10.64727528]
[1734997606196,11.6341927,190.03,189.96,10.64727528]
[1734997606700,2.55616383,190.04,189.96,10.64727528]
[1734997606921,13.20343911,190.04,189.97,10.64727528]
[1734997607102,13.20343911,190.04,189.96,10.64727528]
[1734997607430,6.3589,190.07,189.99,10.64727528]
[1734997607590,10.64727528,190.06,189.99,10.64727528]
[1734997608099,11.63390341,190.06,189.99,10.64727528]
[1734997608415,10.64727528,190.05,189.98,10.64727528]
[1734997609003,11.63393415,190.04,189.94,1.6278]
[1734997609342,10.64727528,190.03,189.96,10.64727528]
[1734997609701,10.64727528,190.04,189.96,10.64727528]
[1734997609921,10.64727528,190.04,189.97,10.64727528]
[1734997610200,0.98676213,190.03,189.96,10.64727528]
[1734997610837,10.64727528,190.04,189.96,10.64727528]
[1734997612043,10.64727528,190.04,189.94,1.6278]
[1734997612203,10.64727528,190.04,189.97,10.64727528]
[1734997613900,0.98676695,190.03,189.97,10.64727528]
[1734997614101,10.64727528,190.04,189.97,10.64727528]
[1734997614528,0.98678322,190.03,189.97,10.64727528]
[1734997614827,6.3589,190.07,190.0,10.64727528]
[1734997614828,17.99296283,190.07,190.0,10.64727528]
[1734997616431,10.64727528,190.06,189.99,10.64727528]
[1734997616629,0.98659852,190.06,190.0,10.64727528]
[1734997617124,10.64727528,190.05,189.96,10.647276]
[1734997617317,0.98674982,190.04,189.97,10.64727528]
[1734997617518,11.6340251,190.04,189.97,10.64727528]
[1734997618331,10.64727528,190.04,189.97,10.64727528]
[1734997618907,10.64727528,190.05,189.97,10.64727528]
[1734997619525,10.64727528,190.05,189.94,12.275075]
[1734997619730,11.63400455,190.04,189.96,10.64727528]
[1734997621605,11.63400455,190.04,189.96,9.87727528]
[1734997622735,11.63400455,190.04,189.93,22.84210245]
[1734997623114,11.63400455,190.04,189.96,10.64727528]
[1734997625034,0.98687434,190.05,189.98,10.64727528]
[1734997625338,0.98670204,190.06,190.0,10.64727528]
[1734997625520,0.98670204,190.06,189.99,10.64727528]
[1734997625727,0.98670204,190.06,190.0,10.64727528]
[1734997625946,1.5693,190.09,190.03,10.64727528]
[1734997626114,1.5693,190.09,190.02,10.64727528]
[1734997626438,0.98648879,190.08,190.02,10.64727528]
[1734997626807,1.5693,190.09,190.03,10.64727528]
[1734997627013,1.5693,190.09,190.04,10.64727528]
[1734997627318,1.5693,190.09,190.03,10.64727528]
[1734997627512,1.5693,190.09,190.02,10.64727528]
[1734997627740,1.5693,190.09,190.04,10.64727528]
[1734997628221,1.5693,190.09,190.03,10.64727528]
[1734997629037,1.5693,190.09,190.04,10.64727528]
[1734997629352,1.5693,190.09,190.03,10.64727528]
[1734997629541,1.5693,190.09,190.04,10.64727528]
[1734997629709,1.5693,190.09,190.03,10.64727528]
[1734997629910,10.64727528,190.07,189.99,20.0]
[1734997630310,0.98655371,190.06,189.99,20.0]
[1734997630615,10.64727528,190.07,190.0,10.64727528]
[1734997630811,0.98659477,190.06,190.0,10.64727528]
[1734997631017,10.64727528,190.05,189.98,10.64727528]
[1734997631231,11.63403319,190.04,189.97,10.64727528]
[1734997631433,11.63403319,190.04,189.96,10.64727528]
[1734997631434,10.64727528,190.03,189.96,10.64727528]
[1734997631641,0.98686274,190.02,189.95,10.64727528]
[1734997632011,11.63413802,190.02,189.92,13.244805]
[1734997632217,10.64727528,190.0,189.93,10.64727528]
[1734997632545,0.98701144,189.99,189.93,10.64727528]
[1734997632726,2.57750121,190.02,189.95,10.64727528]
[1734997633039,1.5905,190.02,189.96,10.64727528]
[1734997633234,1.5905,190.02,189.97,10.64727528]
[1734997633439,2.57722611,190.02,189.95,10.64727528]
[1734997633828,13.22450139,190.02,189.95,10.64727528]
[1734997634945,1.5905,190.02,189.95,10.64727528]
[1734997635318,2.57731966,190.02,189.95,10.64727528]
[1734997636539,1.5905,190.02,189.95,10.64727528]
[1734997637047,1.5905,190.02,189.95,10.12427528]
[1734997643430,2.65109297,190.08,190.0,10.64727528]
[1734997643654,1.6643,190.08,190.02,10.64727528]
[1734997643950,8.00959903,190.11,190.05,10.64727528]
[1734997644530,1.6643,190.13,190.07,10.64727528]
[1734997647259,1.63959587,190.13,190.06,10.64727528]
[1734997653541,10.64727528,190.12,190.05,10.64727528]
[1734997653735,1.6493,190.18,190.08,10.64727528]
[1734997653943,10.64727528,190.16,190.09,10.64727528]
[1734997654255,10.64727528,190.16,190.08,10.64727528]
[1734997654456,10.64727528,190.15,190.08,10.64727528]
[1734997654635,10.64727528,190.16,190.09,10.64727528]
[1734997655136,10.64727528,190.17,190.1,10.64727528]
[1734997655337,13.28261043,190.18,190.11,10.64727528]
[1734997655536,12.29657528,190.18,190.11,10.64727528]
[1734997656260,10.64727528,190.17,190.1,10.64727528]
[1734997656465,10.64727528,190.16,190.09,10.64727528]
[1734997657168,10.64727528,190.17,190.1,10.64727528]
[1734997658769,1.6493,190.18,190.11,10.64727528]
[1734997659469,1.6493,190.18,190.08,2.08082591]
[1734997659470,1.6493,190.18,190.12,10.64727528]
[1734997659665,1.6493,190.18,190.08,2.08082591]
[1734997659867,3.9428,190.22,190.13,10.64727528]
[1734997660045,10.64727528,190.2,190.13,10.64727528]
[1734997662073,10.64727528,190.19,190.12,10.64727528]
[1734997663068,10.64727528,190.21,190.14,10.64727528]
[1734997663471,13.28241847,190.23,190.16,10.64727528]
[1734997663671,1.6493,190.23,190.17,10.64727528]
[1734997664048,12.29657528,190.23,190.17,10.64727528]
[1734997664253,10.64727528,190.21,190.14,10.64727528]
[1734997664547,10.64727528,190.2,190.12,20.0]
[1734997664748,10.64727528,190.17,190.13,20.0]
[1734997664957,10.64727528,190.18,190.11,10.64727528]
[1734997665162,10.64727528,190.15,190.08,10.64727528]
[1734997665855,10.64727528,190.16,190.09,10.64727528]
[1734997666058,1.6493,190.15,190.09,10.64727528]
[1734997666353,12.29657528,190.15,190.08,10.64727528]
[1734997667475,1.6493,190.15,190.08,10.64727528]
[1734997667972,11.63339982,190.14,190.06,10.64727528]
[1734997668683,0.98612454,190.14,190.07,10.64727528]
[1734997668972,11.63339982,190.14,190.04,2.09691313]
[1734997669194,11.63339982,190.14,190.07,10.64727528]
[1734997669696,0.98612454,190.14,190.07,10.64727528]
[1734997669854,0.98621882,190.13,190.02,23.902374]
[1734997670164,10.64727528,190.12,190.05,10.64727528]
[1734997671176,11.63362521,190.11,190.04,20.0]
[1734997671382,11.63362521,190.11,190.03,10.64727528]
[1734997675885,0.98634993,190.11,190.05,10.64727528]
[1734997676070,2.63567838,190.15,190.05,10.64727528]
[1734997676271,10.64727528,190.14,190.07,10.64727528]
[1734997676585,13.28295366,190.15,190.08,10.64727528]
[1734997676755,1.6493,190.15,190.09,10.64727528]
[1734997676956,10.64727528,190.12,190.04,10.64727528]
[1734997677256,1.5694,190.06,189.98,10.64727528]
[1734997677463,1.5694,190.06,190.0,10.64727528]
[1734997677679,1.5694,190.06,190.02,10.64727528]
[1734997678677,1.5694,190.06,190.0,10.64727528]
[1734997680162,1.5694,190.06,190.02,10.64727528]
[1734997682169,1.5694,190.1,190.05,10.64727528]
[1734997682374,1.5694,190.1,190.06,10.64727528]
[1734997682586,6.3464,190.13,190.07,10.64727528]
[1734997682781,6.3464,190.13,190.08,10.64727528]
[1734997683290,1.5694,190.15,190.08,10.64727528]
[1734997683663,1.5694,190.15,190.09,10.64727528]
[1734997684081,6.3464,190.18,190.12,10.64727528]
[1734997684472,6.3464,190.18,190.14,10.64727528]
[1734997684671,1.5694,190.2,190.14,10.64727528]
[1734997684876,6.3464,190.23,190.17,10.64727528]
[1734997685087,6.3464,190.23,190.18,10.64727528]
[1734997685589,1.5694,190.24,190.18,10.64727528]
[1734997686003,12.21667528,190.24,190.17,10.64727528]
[1734997686196,16.61858852,190.22,190.15,36.61858852]
[1734997686884,16.61858852,190.21,190.15,20.0]
[1734997687081,16.61858852,190.17,190.08,20.0]
[1734997687307,16.61858852,190.16,190.13,20.0]
[1734997687592,16.61858852,190.16,190.08,20.0]
[1734997687593,17.60468686,190.15,190.08,16.61858852]
[1734997687809,17.60468686,190.15,190.06,16.61858852]
[1734997687810,16.61858852,190.13,190.06,16.61858852]
[1734997688272,16.61858852,190.11,190.04,16.61858852]
[1734997689597,16.61858852,190.13,190.05,16.61858852]
[1734997690270,18.18108852,190.14,190.06,16.61858852]
[1734997690475,1.5625,190.14,190.08,16.61858852]
[1734997690783,23.14918852,190.17,190.09,16.61858852]
[1734997691577,6.5306,190.17,190.11,16.61858852]
[1734997691786,18.18108852,190.19,190.11,16.61858852]
[1734997691973,1.5625,190.19,190.13,16.61858852]
[1734997693102,18.18108852,190.19,190.13,16.61858852]
[1734997693275,0.9859163,190.18,190.11,16.61858852]
[1734997693476,16.61858852,190.17,190.12,20.0]
[1734997694177,16.61858852,190.18,190.11,16.61858852]
[1734997694376,18.18108852,190.19,190.11,16.61858852]
[1734997695378,1.5625,190.19,190.12,16.61858852]
[1734997695689,6.5306,190.21,190.15,16.61858852]
[1734997695886,1.5625,190.24,190.18,16.61858852]
[1734997696090,1.5625,190.24,190.17,16.61858852]
[1734997696992,16.61858852,190.23,190.16,16.61858852]
[1734997697214,16.61858852,190.2,190.13,16.61858852]
[1734997697506,16.61858852,190.21,190.13,16.61858852]
[1734997697701,16.61858852,190.22,190.14,16.61858852]
[1734997698002,16.61858852,190.22,190.15,16.61858852]
[1734997699099,16.61858852,190.18,190.02,78.94619887]
[1734997699275,16.61858852,190.18,190.11,16.61858852]
[1734997699479,16.61858852,190.18,190.02,81.07834798]
[1734997699680,16.61858852,190.18,190.1,16.61858852]
[1734997700302,16.61858852,190.2,190.12,16.61858852]
[1734997700508,16.61858852,190.2,190.14,16.61858852]
[1734997700704,16.61858852,190.22,190.14,16.61858852]